fUSD/lending_fUSD_20240811
["ID","MTS","AMOUNT","RATE_DAILY","PERIOD"]
[334614883,1723348241220,-1500.0,0.0001675,2]
[334614885,1723348241230,-150.0,0.00016752,2]
[334614887,1723348241239,-150.0,0.00016753,2]
[334614889,1723348241248,-150.0,0.00016754,2]
[334614891,1723348241257,-150.0,0.00016755,2]
[334614893,1723348241266,-150.0,0.00016757,2]
[334614895,1723348241275,-150.0,0.00016757,2]
[334614897,1723348241285,-150.0,0.00016758,2]
[334614899,1723348241294,-1500.0,0.00016759,2]
[334614901,1723348241303,-150.0,0.00016761,2]
[334614903,1723348241312,-1500.0,0.00016762,2]
[334614905,1723348241322,-150.0,0.00016763,2]
[334614907,1723348241331,-150.0,0.00016764,2]
[334614909,1723348241341,-1500.0,0.00016767,2]
[334614911,1723348241350,-150.0,0.00016768,2]
[334614913,1723348241359,-150.0,0.00016769,2]
[334614915,1723348241368,-150.0,0.00016772,2]
[334614917,1723348241378,-150.0,0.00016773,2]
[334614919,1723348241387,-1500.0,0.00016774,2]
[334614921,1723348241396,-150.0,0.00016775,2]
[334614922,1723348241406,-1500.0,0.00016775,2]
[334614924,1723348241415,-1500.0,0.00016777,2]
[334614927,1723348241426,-150.0,0.00016778,2]
[334614928,1723348241435,-150.0,0.00016785,2]
[334614930,1723348241444,-150.0,0.00016785,2]
[334614932,1723348241453,-150.0,0.00016791,2]
[334614934,1723348241462,-1035.85389854,0.00016794,2]
[334614936,1723348241471,-150.0,0.00016795,2]
[334614938,1723348241480,-1500.0,0.00016799,2]
[334614940,1723348241489,-150.0,0.00016799,2]
[334614942,1723348241498,-503.0,0.000168,2]
[334614944,1723348241507,-150.0,0.00016801,2]
[334614946,1723348241516,-150.0,0.00016804,2]
[334614948,1723348241526,-150.0,0.00016806,2]
[334614950,1723348241535,-150.0,0.00016806,2]
[334614952,1723348241544,-150.0,0.00016807,2]
[334614954,1723348241554,-150.0,0.00016808,2]
[334614955,1723348241563,-150.0,0.00016808,2]
[334614957,1723348241572,-150.0,0.0001681,2]
[334614959,1723348241581,-151.39908778,0.0001681,2]
[334614961,1723348241590,-150.0,0.00016812,2]
[334614963,1723348241600,-1500.0,0.00016814,2]
[334614965,1723348241609,-150.0,0.00016816,2]
[334614967,1723348241619,-150.0,0.00016818,2]
[334614969,1723348241629,-150.0,0.00016818,2]
[334614970,1723348241638,-150.0,0.0001682,2]
[334614972,1723348241647,-150.0,0.00016824,2]
[334614974,1723348241661,-150.0,0.00016825,2]
[334614976,1723348241671,-203.24854396,0.00016829,2]
[334614978,1723348241680,-300.41991198,0.0001683,2]
[334614980,1723348241689,-150.0,0.00016832,2]
[334614982,1723348241699,-256.36902567,0.00016834,2]
[334615018,1723348242030,-1243.63097433,0.00016834,2]
[334615020,1723348242043,-150.0,0.00016835,2]
[334615022,1723348242055,-150.0,0.00016839,2]
[334615024,1723348242066,-1500.0,0.00016841,2]
[334615026,1723348242077,-150.0,0.00016846,2]
[334615029,1723348242089,-150.0,0.00016847,2]
[334615031,1723348242100,-150.0,0.00016848,2]
[334615033,1723348242110,-1969.10532941,0.00016897,2]
[334615035,1723348242120,-872.0,0.0001693,2]
[334615037,1723348242132,-1739.40578979,0.00016948,2]
[334615040,1723348242143,-1139.01127455,0.00016948,2]
[334615042,1723348242154,-1568.18440629,0.00016951,2]
[334615044,1723348242163,-326.81458476,0.00016962,2]
[334615046,1723348242172,-200.05767972,0.00016973,2]
[334615048,1723348242182,-81.2928844,0.000171,2]
[334615050,1723348242194,-918.7071156,0.000171,2]
[334615052,1723348242205,-167.0,0.00017137,2]
[334615054,1723348242214,-1002.32,0.000172,2]
[334615056,1723348242223,-1723.72467718,0.000172,2]
[334615058,1723348242233,-179.72,0.00017222,2]
[334615060,1723348242242,-1000.0,0.000173,2]
[334615062,1723348242251,-795.04095341,0.00017467,2]
[334615064,1723348242261,-167.0,0.00017573,2]
[334615066,1723348242270,-764.5,0.00017616,2]
[334615068,1723348242280,-155.0,0.00017636,2]
[334615070,1723348242290,-440.04082171,0.00017636,2]
[334615072,1723348242300,-267.58332672,0.00017636,2]
[334615074,1723348242310,-471.41421915,0.00017636,2]
[334615075,1723348242319,-4380.33719239,0.00017667,2]
[334615077,1723348242329,-293.56,0.00017719,2]
[334615079,1723348242338,-359.37786327,0.00017739,2]
[334615081,1723348242347,-447.83261754,0.00017739,2]
[334615083,1723348242356,-275.64391923,0.00017739,2]
[334615085,1723348242366,-158.98739992,0.00017739,2]
[334615087,1723348242375,-474.25400104,0.00017782,2]
[334615089,1723348242385,-265.41044069,0.00017782,2]
[334615090,1723348242395,-211.71844896,0.00017782,2]
[334615092,1723348242405,-155.0,0.00017782,2]
[334615094,1723348242414,-1613.0,0.00017784,2]
[334615096,1723348242424,-296.99692652,0.00017799,2]
[334615098,1723348242434,-438.43525465,0.00017799,2]
[334615100,1723348242444,-203.39382125,0.00017799,2]
[334615102,1723348242453,-197.12017333,0.00017799,2]
[334615104,1723348242463,-316.73217254,0.00017807,2]
[334615106,1723348242472,-164.36391745,0.00017807,2]
[334615108,1723348242482,-367.83900343,0.00017807,2]
[334615110,1723348242491,-326.81458476,0.00017954,2]
[334615112,1723348242501,-591.65069221,0.00018,2]
[334615114,1723348242511,-676.29872817,0.00018,2]
[334615116,1723348242521,-630.512392,0.00018,2]
[334615118,1723348242530,-630.512392,0.00018,2]
[334615120,1723348242540,-624.33214489,0.00018081,2]
[334615122,1723348242550,-1002.32,0.000183,2]
[334615124,1723348242560,-167.0,0.00018444,2]
[334615126,1723348242570,-167.0,0.00018444,2]
[334615128,1723348242580,-170.79932157,0.00018483,2]
[334615130,1723348242589,-7084.30700146,0.00018483,2]
[334615132,1723348242606,-6071.91809955,0.00018483,2]
[334615135,1723348242617,-2690.65746177,0.00018483,2]
[334615137,1723348242628,-445.34091486,0.00018483,2]
[334615154,1723348242801,-12679.61716819,0.00018483,2]
[334615156,1723348242811,-3204.24695494,0.00018483,2]
[334615158,1723348242822,-199.68650674,0.00018499,2]
[334615160,1723348242831,-1237.85424953,0.00018529,2]
[334615162,1723348242841,-585.31290619,0.00018529,2]
[334615164,1723348242852,-375.67074075,0.00018529,2]
[334615166,1723348242863,-526.66030387,0.00018547,2]
[334615169,1723348242873,-437.91,0.00018565,2]
[334615170,1723348242883,-1923.0,0.00018583,2]
[334615172,1723348242893,-622.0,0.00018583,2]
[334615174,1723348242903,-1584.0,0.00018583,2]
[334615176,1723348242912,-1257.0,0.00018583,2]
[334615178,1723348242923,-810.0,0.00018583,2]
[334615180,1723348242933,-453.368,0.00018583,2]
[334615182,1723348242943,-150.0,0.00018583,2]
[334615183,1723348242952,-446.0,0.00018583,2]
[334615184,1723348242961,-150.0,0.00018583,2]
[334615185,1723348242971,-551.0,0.00018583,2]
[334615186,1723348242980,-1698.193,0.00018583,2]
[334615187,1723348242990,-1132.0,0.00018583,2]
[334615188,1723348242999,-3291.0,0.00018583,2]
[334615189,1723348243008,-5837.0,0.00018583,2]
[334615190,1723348243018,-1672.0,0.00018583,2]
[334615191,1723348243028,-289.0,0.00018583,2]
[334615192,1723348243038,-16080.25326324,0.00018583,2]
[334615200,1723348243150,-150.0,0.00016825,2]
[334615202,1723348243164,-223.26771455,0.00018176,2]
[334615204,1723348243174,-809.53228545,0.00018583,2]
[334615207,1723348243198,-150.0,0.00016623,2]
[334615209,1723348243207,-150.0,0.00016762,2]
[334615211,1723348243216,-150.0,0.0001677,2]
[334615213,1723348243227,-4850.21445131,0.00018583,2]
[334615215,1723348243237,-1204.0,0.00018583,2]
[334615217,1723348243246,-4689.8461357,0.000186,2]
[334615219,1723348243255,-872.0,0.00018623,2]
[334615221,1723348243266,-160.0,0.00018658,2]
[334615223,1723348243279,-1199.0,0.000187,2]
[334615225,1723348243293,-724.57093292,0.000187,2]
[334615228,1723348243317,-150.0,0.00016647,2]
[334615231,1723348243327,-150.0,0.00016739,2]
[334615233,1723348243338,-99.73,0.000187,2]
[334615237,1723348243363,-150.0,0.00016716,2]
[334615238,1723348243373,-150.0,0.00016752,2]
[334615240,1723348243382,-150.0,0.00016787,2]
[334615242,1723348243392,-818.3754551,0.000187,2]
[334615245,1723348243403,-2737.66080437,0.000187,2]
[334615247,1723348243413,-994.28729542,0.000188,2]
[334615355,1723348244534,-155.0,0.00013996,2]
[334615357,1723348244543,-150.0,0.00014864,2]
[334615358,1723348244553,-598.64500519,0.00015583,2]
[334615467,1723348246445,-1138.65459664,0.0001254,2]
[334615468,1723348246457,-1007.07286864,0.0001254,2]
[334615469,1723348246467,-243.02171556,0.00013999,2]
[334615470,1723348246478,-719.33610974,0.00013999,2]
[334615471,1723348246488,-1499.50447135,0.00015168,2]
[334615472,1723348247257,12922.72513957,0.0001,14]
[334615570,1723348252309,318.5203,0.00010968,2]
[334615604,1723348310517,227.74801183,0.00010968,2]
[334615621,1723348317617,4462.65929879,0.00010968,2]
[334615623,1723348324009,1111.30469348,0.00010968,2]
[334615664,1723348422515,227.74801183,0.00010968,2]
[334615675,1723348765382,550.0,0.0001,2]
[334615987,1723349431775,-7075.54324505,0.00011105,2]
[334615988,1723349431785,-2385.9620191,0.0001185,2]
[334615989,1723349431795,-292.16627667,0.00011896,2]
[334615990,1723349431804,-303.92875571,0.00011959,2]
[334615991,1723349431815,-600.0,0.00012,2]
[334615992,1723349431825,-506.37,0.00012003,2]
[334615993,1723349431836,-221.74965742,0.0001254,2]
[334615994,1723349431845,-804.18973231,0.0001254,2]
[334615995,1723349431855,-158.98739992,0.00012581,2]
[334615996,1723349431864,-357.41882144,0.00012581,2]
[334615997,1723349431874,-164.36391745,0.00012581,2]
[334615998,1723349431885,-432.43627128,0.00012613,2]
[334615999,1723349431895,-193.57141993,0.00012613,2]
[334616000,1723349431904,-388.66892616,0.00012613,2]
[334616001,1723349431913,-476.8972795,0.00012665,2]
[334616002,1723349431922,-219.27817209,0.00012665,2]
[334616003,1723349431931,-112.85796107,0.00012665,2]
[334616004,1723349431943,-123.46393953,0.00012665,2]
[334616005,1723349431952,-192.24577429,0.00012665,2]
[334616006,1723349431961,-164.38725196,0.00012665,2]
[334616007,1723349431970,-236.3219006,0.00012665,2]
[334616008,1723349431979,-164.38725196,0.00012666,2]
[334616009,1723349431989,-211.04152423,0.00012666,2]
[334616010,1723349431999,-367.83900343,0.00012681,2]
[334616011,1723349432008,-300.0,0.00013,2]
[334616012,1723349432017,-201.46875763,0.000134,2]
[334616013,1723349432026,-250.0,0.00013506,2]
[334616014,1723349432036,-23900.0,0.00013523,2]
[334616015,1723349432045,-195.72,0.00013557,2]
[334616016,1723349432055,-174.4,0.00013618,2]
[334616017,1723349432065,-1897.07,0.00013648,2]
[334616018,1723349432074,-2751.0,0.00013699,2]
[334616019,1723349432083,-200.0,0.00013957,2]
[334616020,1723349432092,-226.16,0.00013973,2]
[334616021,1723349432102,-165.31,0.00013973,2]
[334616022,1723349432111,-537.59289594,0.00014,2]
[334616023,1723349432124,-650.0,0.00014,2]
[334616024,1723349432134,-224.183632,0.00014,2]
[334616026,1723349432143,-1064.64,0.00014001,2]
[334616028,1723349432152,-210.99013923,0.00014105,2]
[334616030,1723349432162,-210.99013923,0.00014261,2]
[334616032,1723349432172,-506.37,0.00014266,2]
[334616034,1723349432182,-825.6,0.00014635,2]
[334616036,1723349432191,-247.32,0.00014811,2]
[334616038,1723349432201,-155.73849284,0.00015,2]
[334616040,1723349432211,-155.0,0.00015,2]
[334616041,1723349432220,-340.97583371,0.00015,4]
[334616042,1723349432230,-30017.27347923,0.00015,2]
[334616043,1723349432245,-1449.80710875,0.00015,2]
[334616044,1723349432259,-4776.29766075,0.00015,2]
[334616045,1723349432270,-1075.43,0.00015,2]
[334616046,1723349432288,-612.19,0.00015,2]
[334616062,1723349437713,-158.98739992,0.0001254,2]
[334616063,1723349437723,-164.36391745,0.00012581,2]
[334616064,1723349437732,-429.63323263,0.00014988,2]
[334616065,1723349437743,-797.75988739,0.00014988,2]
[334616066,1723349437755,-473.3383626,0.00014988,2]
[334616067,1723349437783,-600.5,0.00014988,2]
[334616068,1723349437796,-2698.76851738,0.00014988,2]
[334616069,1723349437806,-4057.81395452,0.00015,2]
[334616070,1723349437982,-417.84436652,0.00015,2]
[334616071,1723349437992,-1000.6,0.00015,2]
[334616072,1723349438002,-204.24746848,0.00015073,2]
[334616073,1723349438013,-49.03253152,0.00015073,2]
[334616074,1723349438022,-1000.0,0.00015167,2]
[334616075,1723349438032,-174.4,0.00015321,2]
[334616076,1723349438042,-5280.35525315,0.00015445,2]
[334616077,1723349438051,-2969.7103,0.00015745,2]
[334616078,1723349438060,-2759.34971682,0.00015745,2]
[334616079,1723349438070,-398.6583266,0.0001577,2]
[334616080,1723349438081,-372.94911677,0.0001577,2]
[334616081,1723349438093,-228.39255663,0.0001577,2]
[334616082,1723349438103,-1113.17744337,0.0001577,2]
[334616083,1723349438116,-1386.82255663,0.0001577,2]
[334616084,1723349438132,-2161.14933235,0.0001578,2]
[334616085,1723349438142,-1720.75393469,0.0001578,2]
[334616086,1723349438158,-10273.96423296,0.0001578,2]
[334616087,1723349438170,-325.208,0.0001578,2]
[334616088,1723349438179,-1771.01362492,0.0001578,2]
[334616090,1723349438189,-326.81458476,0.0001578,2]
[334616092,1723349438199,-167.0,0.00015831,2]
[334616094,1723349438211,-1583.0,0.00015845,2]
[334616096,1723349438221,-1149.116,0.00015845,2]
[334616098,1723349438231,-590.127,0.00015845,2]
[334616100,1723349438241,-1256.0,0.00015845,2]
[334616102,1723349438250,-150.0,0.00015845,2]
[334616104,1723349438259,-810.0,0.00015845,2]
[334616106,1723349438269,-446.0,0.00015845,2]
[334616108,1723349438278,-551.0,0.00015845,2]
[334616110,1723349438288,-3290.0,0.00015845,2]
[334616112,1723349438297,-150.0,0.00015845,2]
[334616114,1723349438307,-1151.0,0.00015845,2]
[334616117,1723349438322,-5839.0,0.00015845,2]
[334616119,1723349438332,-289.0,0.00015845,2]
[334616121,1723349438340,-1204.0,0.00015845,2]
[334616124,1723349438350,-5131.0,0.00015845,2]
[334616127,1723349438359,-1672.0,0.00015845,2]
[334616129,1723349438370,-21747.0,0.00015845,2]
[334616131,1723349438379,-91130.17030984,0.0001587,3]
[334616251,1723349439583,-702.50870592,0.0001587,3]
[334616253,1723349439595,-1950.0,0.0001587,3]
[334616265,1723349439702,-18180.94223024,0.0001587,3]
[334616267,1723349439713,-437.99355611,0.00015879,2]
[334616269,1723349439723,-61831.3152,0.0001588,2]
[334616271,1723349439733,-37513.55672261,0.0001588,2]
[334616286,1723349439873,-307.774,0.00015845,2]
[334616288,1723349439883,-127.58097,0.0001588,2]
[334616899,1723349445992,-4741.9988593,0.0001588,2]
[334618094,1723349894905,2267.86946261,0.0002,60]
[334618149,1723350569979,550.0,0.0001,2]
[334618163,1723350632098,-300.0,0.00011104,2]
[334618164,1723350632108,-300.0,0.00011104,2]
[334618165,1723350632119,-2145.72746528,0.00011105,2]
[334618166,1723350632129,-208.12256425,0.00011105,2]
[334618167,1723350632139,-156.00213556,0.00011105,2]
[334618168,1723350632149,-155.40512277,0.00011105,2]
[334618169,1723350632159,-223.39758729,0.00011105,2]
[334618170,1723350632169,-500.0,0.00011105,2]
[334618171,1723350632178,-339.46658239,0.00011105,2]
[334618172,1723350632187,-304.90213401,0.00011105,2]
[334618173,1723350632197,-236.07114096,0.00011105,2]
[334618174,1723350632206,-757.46959098,0.00011105,2]
[334618175,1723350632216,-367.83900343,0.00011105,2]
[334618176,1723350632226,-211.04152423,0.00011105,2]
[334618177,1723350632235,-2475.43843719,0.00011186,2]
[334618178,1723350632251,-6402.62715218,0.00011186,2]
[334618179,1723350632267,-327.39805379,0.00011186,2]
[334618180,1723350632279,-481.13236969,0.00011186,2]
[334618181,1723350632291,-879.66981198,0.00011186,2]
[334618227,1723350637825,-307.055,0.00011186,2]
[334618228,1723350637837,-674.55,0.00011186,2]
[334618229,1723350638104,-12819.41414988,0.00011186,2]
[334618230,1723350638116,-601.51186436,0.00011186,2]
[334618232,1723350638282,-959.6578649,0.00011186,2]
[334618233,1723350638295,-554.75,0.0001182,2]
[334618234,1723350638305,-420.0,0.00012201,2]
[334618235,1723350638314,-420.0,0.00012214,2]
[334618236,1723350638323,-5000.0,0.00013378,2]
[334618237,1723350638332,-587.0,0.00013406,2]
[334618238,1723350638342,-300.0,0.00013436,2]
[334618239,1723350638351,-1238.9,0.00013566,2]
[334618240,1723350638360,-700.0,0.00013672,2]
[334618241,1723350638370,-23900.0,0.00013682,2]
[334618242,1723350638379,-2751.0,0.00013752,2]
[334618243,1723350638388,-250.0,0.00013764,2]
[334618244,1723350638397,-15870.4293666,0.00013764,2]
[334618245,1723350638408,-1656.48225265,0.00013764,2]
[334618250,1723350639790,-1058.06846759,0.00013764,2]
[334618251,1723350639851,-586.66991316,0.00013764,2]
[334618252,1723350639860,-203.90643397,0.00013764,2]
[334618253,1723350639910,-2748.421746,0.00013764,2]
[334618254,1723350640026,-3325.60182003,0.00013764,2]
[334618255,1723350640035,-2561.91,0.00013821,2]
[334618256,1723350640047,-197.85,0.0001387,2]
[334618257,1723350640056,-3011.28191111,0.00013942,2]
[334618258,1723350640068,-8947.21879473,0.00013942,2]
[334618259,1723350640080,-8943.78386462,0.00013942,2]
[334618260,1723350640092,-9077.54866152,0.00013942,2]
[334618261,1723350640104,-20.15676802,0.00013942,2]
[334618262,1723350640114,-8923.68346687,0.00013942,2]
[334618263,1723350640139,-739.87264126,0.00013942,2]
[334618264,1723350640162,-281.72244532,0.00013942,2]
[334618337,1723350642820,-9005.80796283,0.00013942,2]
[334618338,1723350644028,-499.39348372,0.00013942,2]
[334618339,1723350644037,-499.99,0.00013942,2]
[334618340,1723350644048,-155.69,0.00013973,2]
[334618341,1723350644058,-152.98,0.00013973,2]
[334618342,1723350644068,-554.83,0.00013973,2]
[334618343,1723350644078,-250.0,0.00013986,2]
[334618344,1723350644088,-174.4,0.00013991,2]
[334618345,1723350644097,-537.59289594,0.00014,2]
[334618346,1723350644106,-200.0,0.00014008,2]
[334618347,1723350644116,-554.75,0.00014084,2]
[334618348,1723350644125,-3581.84,0.00014116,2]
[334618349,1723350644135,-154.82,0.00014224,2]
[334618350,1723350644144,-2111.63219542,0.00014261,2]
[334618351,1723350644153,-197.12017333,0.00014283,2]
[334618352,1723350644162,-1074.57159755,0.00014519,2]
[334618353,1723350644171,-2483.41474521,0.00014557,2]
[334618354,1723350644180,-895.36,0.00014657,2]
[334618355,1723350644190,-823.0,0.0001473,2]
[334618356,1723350644198,-649.80168782,0.00014899,2]
[334618357,1723350644207,-686.9571417,0.00014899,2]
[334618358,1723350644216,-2500.0,0.000149,2]
[334618359,1723350644226,-155.73849284,0.00015,2]
[334618360,1723350644235,-155.0,0.00015,2]
[334618361,1723350644244,-42406.65656977,0.00015,2]
[334618362,1723350644254,-1418.650798,0.00015,2]
[334618363,1723350644263,-172.09,0.00015042,2]
[334618364,1723350644272,-253.28,0.00015254,2]
[334618365,1723350644282,-1000.0,0.00015345,2]
[334618366,1723350644291,-624.33214489,0.00015369,2]
[334618367,1723350644304,-1499.50447135,0.00015445,2]
[334618368,1723350644314,-420.30226764,0.00015497,2]
[334618369,1723350644323,-197.85,0.00015603,2]
[334618370,1723350644333,-2483.41474513,0.00015706,2]
[334618371,1723350644342,-9678.9277,0.00015745,2]
[334618372,1723350644351,-492.133,0.00015745,2]
[334618373,1723350644360,-1549.63692184,0.00015757,2]
[334618374,1723350644369,-500.0,0.00015779,2]
[334618375,1723350644379,-500.0,0.00015779,2]
[334618376,1723350644388,-459.06433627,0.00015779,2]
[334618377,1723350644398,-162.11825958,0.00015779,2]
[334618378,1723350644407,-2042.5497,0.0001578,2]
[334618379,1723350644416,-500.0,0.0001578,2]
[334618380,1723350644426,-17027.3132551,0.0001578,2]
[334618386,1723350645951,-2907.0037697,0.00013559,2]
[334618387,1723350645960,-6315.0852173,0.0001578,2]
[334618388,1723350646010,-3740.3795276,0.0001578,2]
[334618389,1723350646020,-35745.29691633,0.0001578,2]
[334618390,1723350646070,-7416.2350021,0.0001578,2]
[334618391,1723350646082,-422.91126348,0.0001578,2]
[334618395,1723350835159,422.79165157,0.00024,120]
[334618413,1723351749095,7471.3884,0.00010904,2]
[334618423,1723351831972,-649.72,0.00011279,2]
[334618424,1723351831988,-5000.0,0.00012397,2]
[334618425,1723351831999,-159.94001697,0.00012481,2]
[334618426,1723351832011,-2111.63219542,0.0001269,2]
[334618427,1723351832021,-468.806272,0.00012855,2]
[334618428,1723351832030,-394.9538299,0.00012855,2]
[334618429,1723351832039,-178.98170049,0.00012883,2]
[334618430,1723351832049,-286.18308718,0.00012883,2]
[334618431,1723351832059,-300.0,0.00012927,2]
[334618432,1723351832068,-197.12017333,0.00012928,2]
[334618433,1723351832077,-3887.95,0.00012982,2]
[334618434,1723351832086,-367.83900343,0.00012995,2]
[334618435,1723351832095,-930.24,0.0001309,2]
[334618436,1723351832104,-150.0,0.00013096,2]
[334618437,1723351832114,-19775.13,0.00013096,2]
[334618438,1723351832123,-250.0,0.00013102,2]
[334618439,1723351832132,-150.0,0.00013121,2]
[334618440,1723351832142,-154.83,0.00013237,2]
[334618441,1723351832152,-23900.0,0.00013286,2]
[334618442,1723351832162,-250.0,0.00013295,2]
[334618443,1723351832172,-172.09,0.00013316,2]
[334618444,1723351832181,-174.4,0.0001353,2]
[334618445,1723351832190,-649.72,0.00013543,2]
[334618446,1723351832199,-820.93819563,0.00013559,2]
[334618447,1723351832208,-2751.0,0.00013699,2]
[334618448,1723351832218,-200.0,0.00013699,2]
[334618449,1723351832228,-522.20957048,0.00013879,2]
[334618450,1723351832237,-214.85,0.00013973,2]
[334618451,1723351832246,-497.23523563,0.00013986,2]
[334618452,1723351832255,-156.61177703,0.00013996,2]
[334618453,1723351832264,-155.0,0.00013996,2]
[334618454,1723351832273,-2228.12442632,0.00013999,2]
[334618455,1723351832282,-297.4607519,0.00013999,2]
[334618456,1723351832291,-347.66347305,0.00013999,2]
[334618457,1723351832300,-537.59289594,0.00014,2]
[334618458,1723351832309,-165.49338695,0.00014086,2]
[334618459,1723351832318,-420.0,0.00014177,2]
[334618460,1723351832327,-310.74,0.00014261,2]
[334618461,1723351832336,-211.71844896,0.00014261,2]
[334618462,1723351832345,-359.37786327,0.00014261,2]
[334618463,1723351832354,-211.71844896,0.00014261,2]
[334618464,1723351832363,-309.26722249,0.00014283,2]
[334618465,1723351832373,-205.9194973,0.0001443,2]
[334618466,1723351832382,-255.17151718,0.0001443,2]
[334618467,1723351832391,-547.78190811,0.00014519,2]
[334618468,1723351832400,-1518.37625073,0.00014519,2]
[334618469,1723351832410,-1518.37625073,0.00014519,2]
[334618471,1723351832419,-188.39,0.0001464,2]
[334618472,1723351832428,-259.8678,0.00014696,2]
[334618474,1723351832437,-202.799,0.00014696,2]
[334618476,1723351832446,-930.24,0.00014726,2]
[334618478,1723351832456,-1000.0,0.0001479,2]
[334618480,1723351832465,-2500.0,0.0001479,2]
[334618482,1723351832475,-23033.0043,0.000148,2]
[334618483,1723351832484,-11917.2577135,0.000148,2]
[334618486,1723351832500,-3524.4639865,0.000148,2]
[334618488,1723351832509,-1355.93230661,0.000148,2]
[334618490,1723351832519,-326.81458476,0.000148,2]
[334618492,1723351832529,-500.0,0.00014889,2]
[334618494,1723351832538,-500.0,0.00014889,2]
[334618496,1723351832548,-500.0,0.00014889,2]
[334618498,1723351832557,-500.0,0.00014889,2]
[334618500,1723351832566,-500.0,0.00014889,2]
[334618502,1723351832576,-500.0,0.00014889,2]
[334618504,1723351832585,-500.0,0.00014889,2]
[334618506,1723351832595,-500.0,0.00014889,2]
[334618507,1723351832604,-500.0,0.00014889,2]
[334618509,1723351832614,-500.0,0.00014889,2]
[334618511,1723351832624,-500.0,0.00014889,2]
[334618513,1723351832633,-500.0,0.00014889,2]
[334618515,1723351832643,-500.0,0.00014889,2]
[334618517,1723351832652,-643.57307019,0.00014889,2]
[334618518,1723351832661,-500.0,0.00014889,2]
[334618519,1723351832670,-390.67339236,0.00014889,2]
[334618520,1723351832685,-423.20937573,0.00014889,2]
[334618521,1723351832694,-500.0,0.00014889,2]
[334618522,1723351832703,-500.0,0.00014889,2]
[334618523,1723351832711,-500.0,0.00014889,2]
[334618524,1723351832723,-500.0,0.00014889,2]
[334618525,1723351832737,-500.0,0.00014889,2]
[334618526,1723351832745,-500.0,0.00014889,2]
[334618527,1723351832754,-517.60620489,0.00014889,2]
[334618528,1723351832763,-500.0,0.00014889,2]
[334618529,1723351832772,-500.0,0.00014889,2]
[334618530,1723351832781,-500.0,0.00014889,2]
[334618531,1723351832790,-181.51124092,0.00014889,2]
[334618532,1723351832799,-500.0,0.00014889,2]
[334618533,1723351832809,-500.0,0.00014889,2]
[334618534,1723351832818,-500.0,0.00014889,2]
[334618535,1723351832827,-500.0,0.00014889,2]
[334618536,1723351832837,-500.0,0.00014889,2]
[334618537,1723351832846,-500.0,0.00014889,2]
[334618538,1723351832855,-384.50046667,0.00014889,2]
[334618539,1723351832870,-115.49953332,0.00014889,2]
[334618540,1723351832880,-1206.62904628,0.0001489,3]
[334618541,1723351832891,-15563.84535004,0.0001489,3]
[334618542,1723351832902,-7226.18825408,0.0001489,3]
[334618543,1723351832913,-2300.0,0.0001489,3]
[334618544,1723351832924,-903.92013879,0.0001489,3]
[334618545,1723351832940,-2907.42490936,0.0001489,3]
[334618546,1723351832959,-345.5,0.0001489,3]
[334618548,1723351838162,-205.9194973,0.00014283,2]
[334618549,1723351838338,-17585.6000435,0.0001489,3]
[334618550,1723351838351,-28009.35838914,0.0001489,3]
[334618551,1723351838388,-29581.3791582,0.0001489,3]
[334618708,1723351839990,-1338.66171481,0.00012649,2]
[334618732,1723351840103,-285.4682656,0.00012649,2]
[334618736,1723351840116,-269.13959878,0.00012649,2]
[334619152,1723351843876,-4007.49939115,0.00012649,2]
[334619154,1723351843887,-6713.93312966,0.00012649,2]
[334619156,1723351843897,-2111.63219542,0.00012681,2]
[334619158,1723351843905,-64875.14639561,0.0001489,3]